fUSD/lending_fUSD_20240329
["ID","MTS","AMOUNT","RATE_DAILY","PERIOD"]
[320968271,1711723852063,-898.81,0.00052602,120]
[320968272,1711723852073,-517.6,0.00052602,120]
[320968273,1711723852082,-500.0,0.00052602,120]
[320968274,1711723852092,-500.0,0.00052602,120]
[320968275,1711723852103,-500.0,0.00052602,120]
[320968276,1711723852112,-180.98888889,0.00052822,120]
[320968277,1711723852121,-2496.0,0.00052876,120]
[320968278,1711723852130,-946.71,0.00052876,120]
[320968279,1711723852139,-500.0,0.00052876,120]
[320968280,1711723852148,-769.55,0.00052876,120]
[320968281,1711723852157,-1062.22,0.00052876,120]
[320968282,1711723852166,-500.0,0.00052876,120]
[320968283,1711723852175,-637.8,0.00052876,120]
[320968284,1711723852184,-664.8,0.00052876,120]
[320968285,1711723852193,-521.21631426,0.00052876,120]
[320968286,1711723852202,-500.0,0.00052876,120]
[320968287,1711723852212,-599.91,0.00052876,120]
[320968288,1711723852221,-500.0,0.00052876,120]
[320968289,1711723852230,-518.25,0.00052876,120]
[320968290,1711723852239,-500.0,0.00052876,120]
[320968291,1711723852249,-500.0,0.00052876,120]
[320968292,1711723852258,-500.0,0.00052876,120]
[320968293,1711723852267,-500.0,0.00052876,120]
[320968294,1711723852276,-500.0,0.00052876,120]
[320968295,1711723852285,-1983.39,0.00052876,120]
[320968296,1711723852295,-1276.04,0.00052876,120]
[320968297,1711723852304,-898.81,0.00052876,120]
[320968298,1711723852313,-517.6,0.00052876,120]
[320968299,1711723852617,-500.0,0.00052876,120]
[320968300,1711723852632,-500.0,0.00052876,120]
[320968301,1711723852641,-608.86,0.00052876,120]
[320968302,1711723852650,-9375.05301,0.000529,22]
[320968303,1711723852659,-2496.0,0.0005315,120]
[320968304,1711723852668,-946.71,0.0005315,120]
[320968305,1711723852677,-500.0,0.0005315,120]
[320968306,1711723852686,-769.55,0.0005315,120]
[320968307,1711723852695,-1062.22,0.0005315,120]
[320968308,1711723852705,-500.0,0.0005315,120]
[320968309,1711723852714,-637.8,0.0005315,120]
[320968310,1711723852724,-664.8,0.0005315,120]
[320968311,1711723852733,-500.0,0.0005315,120]
[320968312,1711723852742,-599.91,0.0005315,120]
[320968313,1711723852752,-500.0,0.0005315,120]
[320968314,1711723852761,-518.25,0.0005315,120]
[320968315,1711723852770,-500.0,0.0005315,120]
[320968316,1711723852779,-500.0,0.0005315,120]
[320968317,1711723852789,-500.0,0.0005315,120]
[320968318,1711723852798,-500.0,0.0005315,120]
[320968319,1711723852807,-500.0,0.0005315,120]
[320968320,1711723852817,-1983.39,0.0005315,120]
[320968321,1711723852827,-1276.04,0.0005315,120]
[320968322,1711723852836,-898.81,0.0005315,120]
[320968323,1711723852846,-517.6,0.0005315,120]
[320968324,1711723852855,-500.0,0.0005315,120]
[320968325,1711723852864,-500.0,0.0005315,120]
[320968326,1711723852874,-1000.0,0.00053362,120]
[320968327,1711723852883,-2496.0,0.00053424,120]
[320968328,1711723852892,-946.71,0.00053424,120]
[320968329,1711723852901,-500.0,0.00053424,120]
[320968330,1711723852910,-769.55,0.00053424,120]
[320968331,1711723852920,-1062.22,0.00053424,120]
[320968332,1711723852929,-500.0,0.00053424,120]
[320968333,1711723852938,-1000.0,0.00053424,120]
[320968334,1711723852947,-637.8,0.00053424,120]
[320968335,1711723852956,-664.8,0.00053424,120]
[320968336,1711723852966,-500.0,0.00053424,120]
[320968337,1711723852975,-599.91,0.00053424,120]
[320968338,1711723852985,-500.0,0.00053424,120]
[320968339,1711723852994,-518.25,0.00053424,120]
[320968340,1711723853003,-500.0,0.00053424,120]
[320968341,1711723853012,-500.0,0.00053424,120]
[320968342,1711723853021,-406.29018406,0.00053424,120]
[320968343,1711723853031,-500.0,0.00053424,120]
[320968344,1711723853040,-1983.39,0.00053424,120]
[320968345,1711723853049,-1276.04,0.00053424,120]
[320968346,1711723853059,-898.81,0.00053424,120]
[320968347,1711723853068,-517.6,0.00053424,120]
[320968348,1711723853077,-500.0,0.00053424,120]
[320968349,1711723853086,-500.0,0.00053424,120]
[320968350,1711723853095,-180.98888889,0.00053425,120]
[320968351,1711723853105,-622.52053178,0.00053535,31]
[320968352,1711723853114,-157.69803797,0.00053637,60]
[320968353,1711723853123,-2496.0,0.00053698,120]
[320968354,1711723853132,-946.71,0.00053698,120]
[320968355,1711723853141,-381.14616021,0.00053698,120]
[320968356,1711723853150,-769.55,0.00053698,120]
[320968357,1711723853159,-1062.22,0.00053698,120]
[320968358,1711723853169,-500.0,0.00053698,120]
[320968359,1711723853178,-637.8,0.00053698,120]
[320968360,1711723853188,-664.8,0.00053698,120]
[320968361,1711723853198,-500.0,0.00053698,120]
[320968362,1711723853207,-599.91,0.00053698,120]
[320968363,1711723853216,-500.0,0.00053698,120]
[320968364,1711723853225,-518.25,0.00053698,120]
[320968365,1711723853235,-239.37546739,0.00053698,120]
[320968366,1711723853245,-500.0,0.00053698,120]
[320968367,1711723853254,-500.0,0.00053698,120]
[320968368,1711723853264,-1983.39,0.00053698,120]
[320968369,1711723853273,-1276.04,0.00053698,120]
[320968370,1711723853283,-898.81,0.00053698,120]
[320968371,1711723853293,-517.6,0.00053698,120]
[320968372,1711723853304,-327.47011687,0.00053698,120]
[320968373,1711723853313,-500.0,0.00053698,120]
[320968374,1711723853323,-386.92448372,0.0005375,30]
[320968375,1711723853333,-155.11312691,0.00053783,60]
[320968376,1711723853342,-151.0,0.00053836,120]
[320968377,1711723853352,-1154.0,0.000539,18]
[320968378,1711723853362,-152.0,0.00053911,3]
[320968379,1711723853371,-2496.0,0.00053972,120]
[320968380,1711723853380,-946.71,0.00053972,120]
[320968381,1711723853390,-769.55,0.00053972,120]
[320968382,1711723853398,-1062.22,0.00053972,120]
[320968383,1711723853409,-500.0,0.00053972,120]
[320968384,1711723853418,-637.8,0.00053972,120]
[320968385,1711723853428,-664.8,0.00053972,120]
[320968386,1711723853439,-500.0,0.00053972,120]
[320968387,1711723853448,-599.91,0.00053972,120]
[320968388,1711723853458,-500.0,0.00053972,120]
[320968389,1711723853467,-518.25,0.00053972,120]
[320968390,1711723853477,-348.99208916,0.00053972,120]
[320968391,1711723853487,-500.0,0.00053972,120]
[320968392,1711723853497,-1983.39,0.00053972,120]
[320968393,1711723853507,-1276.04,0.00053972,120]
[320968394,1711723853518,-898.81,0.00053972,120]
[320968395,1711723853528,-517.6,0.00053972,120]
[320968396,1711723853538,-500.0,0.00053972,120]
[320968397,1711723853547,-689.96444878,0.00054,2]
[320968398,1711723853556,-180.98888889,0.00054027,120]
[320968399,1711723853566,-2496.0,0.00054246,120]
[320968400,1711723853575,-946.71,0.00054246,120]
[320968401,1711723853584,-769.55,0.00054246,120]
[320968402,1711723853593,-1062.22,0.00054246,120]
[320968403,1711723853602,-500.0,0.00054246,120]
[320968404,1711723853612,-1000.0,0.00054246,120]
[320968405,1711723853621,-637.8,0.00054246,120]
[320968406,1711723853630,-664.8,0.00054246,120]
[320968407,1711723853641,-156.21422079,0.00054246,120]
[320968408,1711723853651,-599.91,0.00054246,120]
[320968409,1711723853662,-185.6409314,0.00054246,120]
[320968410,1711723853673,-518.25,0.00054246,120]
[320968411,1711723853685,-500.0,0.00054246,120]
[320968412,1711723853695,-1983.39,0.00054246,120]
[320968413,1711723853706,-1276.04,0.00054246,120]
[320968414,1711723853716,-898.81,0.00054246,120]
[320968415,1711723853726,-517.6,0.00054246,120]
[320968416,1711723853735,-277.98334438,0.00054246,120]
[320968417,1711723853744,-2496.0,0.0005452,120]
[320968418,1711723853753,-946.71,0.0005452,120]
[320968419,1711723853763,-769.55,0.0005452,120]
[320968420,1711723853772,-1062.22,0.0005452,120]
[320968421,1711723853782,-500.0,0.0005452,120]
[320968422,1711723853791,-637.8,0.0005452,120]
[320968423,1711723853802,-664.8,0.0005452,120]
[320968424,1711723853811,-599.91,0.0005452,120]
[320968425,1711723853820,-518.25,0.0005452,120]
[320968426,1711723853829,-413.72612426,0.0005452,120]
[320968427,1711723853839,-1762.29677136,0.0005452,120]
[320968428,1711723853853,-221.09322864,0.0005452,120]
[320968429,1711723853862,-392.71371224,0.0005452,120]
[320968430,1711723853883,-562.41626868,0.0005452,120]
[320968431,1711723854005,-302.84639586,0.00049315,120]
[320968432,1711723854032,-217.47360414,0.00049315,120]
[320968433,1711723854041,-529.82,0.00049315,120]
[320968434,1711723854052,-500.0,0.00049315,120]
[320968435,1711723854061,-219.68856628,0.00050059,2]
[320968436,1711723854070,-320.91001908,0.0005452,120]
[320968437,1711723854080,-898.81,0.0005452,120]
[320968438,1711723854090,-517.6,0.0005452,120]
[320968439,1711723854099,-255.5,0.0005462,2]
[320968440,1711723854108,-180.98888889,0.0005463,120]
[320968441,1711723854118,-151.0,0.00054692,2]
[320968442,1711723854127,-2496.0,0.00054794,120]
[320968443,1711723854136,-666.0,0.00054794,120]
[320968444,1711723854145,-946.71,0.00054794,120]
[320968445,1711723854154,-769.55,0.00054794,120]
[320968446,1711723854163,-1062.22,0.00054794,120]
[320968447,1711723854172,-408.70705377,0.00054794,120]
[320968448,1711723854181,-637.8,0.00054794,120]
[320968449,1711723854190,-664.8,0.00054794,120]
[320968450,1711723854199,-599.91,0.00054794,120]
[320968451,1711723854208,-518.25,0.00054794,120]
[320968452,1711723854218,-676.83,0.00054794,120]
[320968453,1711723854227,-1983.39,0.00054794,120]
[320968454,1711723854237,-1276.04,0.00054794,120]
[320968455,1711723854247,-500.0,0.00054794,120]
[320968456,1711723854257,-898.81,0.00054794,120]
[320968457,1711723854266,-517.6,0.00054794,120]
[320968458,1711723854276,-800.0,0.00054795,120]
[320968459,1711723854285,-305.0,0.00054798,30]
[320968460,1711723854294,-6710.06541384,0.00055,60]
[320968461,1711723854305,-2093.48360978,0.00055,120]
[320968462,1711723854326,-9282.53721199,0.00055,120]
[320968463,1711723854336,-156.29,0.00055013,120]
[320968464,1711723854345,-2496.0,0.00055068,120]
[320968465,1711723854354,-946.71,0.00055068,120]
[320968466,1711723854364,-769.55,0.00055068,120]
[320968467,1711723854373,-1062.22,0.00055068,120]
[320968468,1711723854382,-1000.0,0.00055068,120]
[320968469,1711723854392,-637.8,0.00055068,120]
[320968470,1711723854402,-664.8,0.00055068,120]
[320968471,1711723854411,-599.91,0.00055068,120]
[320968472,1711723854424,-518.25,0.00055068,120]
[320968473,1711723854435,-676.83,0.00055068,120]
[320968474,1711723854445,-1983.39,0.00055068,120]
[320968475,1711723854454,-1276.04,0.00055068,120]
[320968476,1711723854463,-500.0,0.00055068,120]
[320968477,1711723854473,-898.81,0.00055068,120]
[320968478,1711723854482,-517.6,0.00055068,120]
[320968479,1711723854491,-152.63,0.000552,8]
[320968480,1711723854500,-152.63,0.000552,8]
[320968481,1711723854509,-175.32,0.000552,30]
[320968482,1711723854519,-754.31,0.000552,8]
[320968483,1711723854528,-754.31,0.000552,8]
[320968484,1711723854537,-754.31,0.000552,8]
[320968485,1711723854547,-754.31,0.000552,8]
[320968486,1711723854557,-754.31,0.000552,8]
[320968487,1711723854566,-754.31,0.000552,8]
[320968488,1711723854576,-754.31,0.000552,8]
[320968489,1711723854585,-754.31,0.000552,8]
[320968490,1711723854595,-754.31,0.000552,8]
[320968491,1711723854604,-754.31,0.000552,8]
[320968492,1711723854613,-666.71065078,0.000552,8]
[320968493,1711723854841,-87.59934922,0.000552,8]
[320968494,1711723854850,-754.31,0.000552,8]
[320968495,1711723854860,-754.31,0.000552,8]
[320968496,1711723854869,-754.31,0.000552,8]
[320968497,1711723854878,-754.31,0.000552,8]
[320968498,1711723854887,-754.31,0.000552,8]
[320968499,1711723854896,-754.31,0.000552,8]
[320968500,1711723854905,-754.31,0.000552,8]
[320968501,1711723854914,-754.31,0.000552,8]
[320968502,1711723854923,-754.31,0.000552,8]
[320968503,1711723854932,-180.98888889,0.00055233,120]
[320968504,1711723854941,-2496.0,0.00055342,120]
[320968505,1711723854950,-946.71,0.00055342,120]
[320968506,1711723854959,-769.55,0.00055342,120]
[320968507,1711723854968,-1062.22,0.00055342,120]
[320968508,1711723854978,-637.8,0.00055342,120]
[320968509,1711723854987,-664.8,0.00055342,120]
[320968510,1711723854996,-599.91,0.00055342,120]
[320968511,1711723855006,-518.25,0.00055342,120]
[320968512,1711723855016,-676.83,0.00055342,120]
[320968513,1711723855025,-1983.39,0.00055342,120]
[320968514,1711723855035,-1276.04,0.00055342,120]
[320968515,1711723855045,-500.0,0.00055342,120]
[320968516,1711723855055,-898.81,0.00055342,120]
[320968517,1711723855065,-517.6,0.00055342,120]
[320968518,1711723855074,-305.0,0.00055363,30]
[320968519,1711723855084,-302.0,0.00055611,4]
[320968520,1711723855094,-2496.16570398,0.00055616,120]
[320968521,1711723855103,-946.8,0.00055616,120]
[320968522,1711723855113,-769.57705437,0.00055616,120]
[320968523,1711723855122,-1062.28379815,0.00055616,120]
[320968524,1711723855132,-637.89733252,0.00055616,120]
[320968525,1711723855142,-664.92565805,0.00055616,120]
[320968526,1711723855151,-599.94831073,0.00055616,120]
[320968527,1711723855161,-518.29736546,0.00055616,120]
[320968528,1711723855170,-676.83,0.00055616,120]
[320968529,1711723855179,-1983.5579,0.00055616,120]
[320968530,1711723855188,-1276.27254261,0.00055616,120]
[320968531,1711723855197,-500.0,0.00055616,120]
[320968532,1711723855206,-898.83621766,0.00055616,120]
[320968533,1711723855215,-517.78485431,0.00055616,120]
[320968534,1711723855225,-159.49680832,0.00055625,120]
[320968535,1711723855235,-738.44,0.00055674,30]
[320968536,1711723855245,-622.52053178,0.00055695,33]
[320968537,1711723855255,-1993.06,0.00055699,120]
[320968538,1711723855264,-151.42,0.000557,14]
[320968539,1711723855273,-151.0,0.00055753,120]
[320968540,1711723855283,-1216.0,0.00055757,120]
[320968541,1711723855292,-1253.0,0.00055757,120]
[320968542,1711723855303,-537.0,0.00055757,120]
[320968543,1711723855312,-150.0,0.00055757,2]
[320968544,1711723855323,-1636.215,0.00055757,120]
[320968545,1711723855333,-4775.0,0.00055757,120]
[320968546,1711723855342,-4741.163,0.00055757,120]
[320968547,1711723855351,-1176.0,0.00055757,120]
[320968548,1711723855361,-13948.694,0.00055757,120]
[320968549,1711723855371,-151.0,0.00055757,2]
[320968550,1711723855381,-180.98888889,0.00055836,120]
[320968551,1711723855390,-1121.8,0.0005589,120]
[320968552,1711723855400,-676.83,0.0005589,120]
[320968553,1711723855424,-500.0,0.0005589,120]
[320968554,1711723855437,-305.0,0.00055928,30]
[320968555,1711723855446,-152.41256327,0.00056056,120]
[320968556,1711723855629,-676.83,0.00056164,120]
[320968557,1711723855639,-500.0,0.00056164,120]
[320968558,1711723855649,-1858.0,0.000562,120]
[320968559,1711723855658,-800.0,0.00056238,120]
[320968560,1711723855667,-150.0,0.00056382,120]
[320968561,1711723855677,-676.83,0.00056438,120]
[320968562,1711723855687,-500.0,0.00056438,120]
[320968563,1711723855697,-180.98888889,0.00056438,120]
[320968564,1711723855706,-218.15965683,0.00056493,30]
[320968565,1711723855715,-559.29676106,0.00056493,30]
[320968566,1711723855725,-305.0,0.00056493,30]
[320968567,1711723855734,-699.68055871,0.00056493,30]
[320968568,1711723855744,-604.0,0.00056546,7]
[320968569,1711723855753,-6920.17337439,0.00056649,2]
[320968570,1711723855763,-676.83,0.00056712,120]
[320968571,1711723855772,-500.0,0.00056712,120]
[320968572,1711723855781,-200.0,0.00056759,120]
[320968573,1711723855791,-200.0,0.00056795,120]
[320968574,1711723855805,-255.5,0.00056884,2]
[320968575,1711723855815,-150.0,0.00056889,120]
[320968576,1711723855826,-150.0,0.00056889,120]
[320968577,1711723855836,-676.83,0.00056986,120]
[320968578,1711723855846,-500.0,0.00056986,120]
[320968579,1711723855856,-583.98108809,0.00057011,2]
[320968580,1711723855866,-180.98888889,0.00057041,120]
[320968581,1711723855876,-305.0,0.00057058,30]
[320968582,1711723855887,-150.0,0.00057074,120]
[320968583,1711723855898,-150.0,0.00057074,120]
[320968584,1711723855908,-151.4857083,0.00057083,120]
[320968585,1711723855918,-151.42,0.000571,14]
[320968586,1711723855927,-5800.0,0.00057111,7]
[320968587,1711723855937,-676.83,0.0005726,120]
[320968588,1711723855947,-500.0,0.0005726,120]
[320968589,1711723855956,-150.0,0.00057289,120]
[320968590,1711723855967,-150.0,0.00057289,120]
[320968591,1711723855976,-1400.0,0.00057303,120]
[320968592,1711723855985,-150.0,0.00057303,30]
[320968593,1711723855995,-150.0,0.00057394,120]
[320968594,1711723856005,-666.0,0.00057534,120]
[320968595,1711723856014,-676.83,0.00057534,120]
[320968596,1711723856024,-190.25,0.00057534,120]
[320968597,1711723856033,-305.0,0.00057623,30]
[320968598,1711723856043,-180.98888889,0.00057644,120]
[320968599,1711723856054,-151.0,0.00057671,120]
[320968600,1711723856063,-152.41256328,0.00057717,120]
[320968601,1711723856073,-676.83,0.00057808,120]
[320968602,1711723856086,-156.29,0.00057949,120]
[320968603,1711723856096,-1208.0,0.00057977,30]
[320968604,1711723856106,-153.06504166,0.00057997,120]
[320968605,1711723856116,-676.83,0.00058082,120]
[320968606,1711723856126,-305.0,0.00058188,30]
[320968607,1711723856136,-180.98888889,0.00058247,120]
[320968608,1711723856146,-676.83,0.00058356,120]
[320968609,1711723856156,-151.42,0.000586,14]
[320968610,1711723856166,-676.83,0.0005863,120]
[320968611,1711723856175,-352.6885144,0.00058689,2]
[320968612,1711723856185,-1000.0,0.00058698,120]
[320968613,1711723856195,-537.0,0.00058757,120]
[320968614,1711723856204,-150.0,0.00058757,2]
[320968615,1711723856214,-4768.0,0.00058757,120]
[320968616,1711723856224,-4991.51955965,0.00058816,2]
[320968617,1711723856234,-261.87713687,0.00058816,120]
[320968618,1711723856243,-180.98888889,0.00058849,120]
[320968619,1711723856253,-152.63,0.000589,9]
[320968620,1711723856262,-152.63,0.000589,9]
[320968621,1711723856272,-754.31,0.000589,9]
[320968622,1711723856282,-754.31,0.000589,9]
[320968623,1711723856292,-754.31,0.000589,9]
[320968624,1711723856303,-754.31,0.000589,9]
[320968625,1711723856313,-754.31,0.000589,9]
[320968626,1711723856322,-754.31,0.000589,9]
[320968627,1711723856332,-754.31,0.000589,9]
[320968628,1711723856342,-754.31,0.000589,9]
[320968629,1711723856356,-754.31,0.000589,9]
[320968630,1711723856366,-754.31,0.000589,9]
[320968631,1711723856375,-754.31,0.000589,9]
[320968632,1711723856385,-754.31,0.000589,9]
[320968633,1711723856394,-754.31,0.000589,9]
[320968634,1711723856404,-754.31,0.000589,9]
[320968635,1711723856413,-754.31,0.000589,9]
[320968636,1711723856428,-754.31,0.000589,9]
[320968637,1711723856445,-754.31,0.000589,9]
[320968638,1711723856468,-754.31,0.000589,9]
[320968639,1711723856494,-754.31,0.000589,9]
[320968640,1711723856511,-754.31,0.000589,9]
[320968641,1711723856523,-676.83,0.00058904,120]
[320968642,1711723856533,-25000.0,0.00059,120]
[320968643,1711723856543,-150.23076923,0.00059072,120]
[320968644,1711723856553,-152.0,0.00059113,4]
[320968645,1711723856562,-255.5,0.00059148,2]
[320968646,1711723856573,-676.83,0.00059178,120]
[320968647,1711723856582,-676.83,0.00059452,120]
[320968648,1711723856591,-180.98888889,0.00059452,120]
[320968649,1711723856600,-151.0,0.00059589,120]
[320968650,1711723856610,-676.83,0.00059726,120]
[320968651,1711723856619,-185.78444528,0.00059939,120]
[320968652,1711723856629,-150.0,0.00059939,120]
[320968653,1711723856638,-150.68854939,0.00059939,120]
[320968654,1711723856647,-150.0,0.00059939,120]
[320968655,1711723856657,-150.0,0.00059939,120]
[320968656,1711723856666,-676.83,0.00059999,120]
[320968657,1711723856677,-7052.20586999,0.0006,30]
[320968658,1711723856686,-13267.33823447,0.0006,112]
[320968659,1711723856695,-155.0,0.0006,120]
[320968660,1711723856705,-10000.0,0.0006,4]
[320968661,1711723856714,-8902.02758958,0.0006,120]
[320968662,1711723856723,-690.46928375,0.0006,90]
[320968663,1711723856733,-160.87430637,0.0006,60]
[320968664,1711723856742,-1494.66562458,0.0006,7]
[320968665,1711723856751,-3198.00185383,0.0006,90]
[320968666,1711723856760,-185.78444528,0.00060006,120]
[320968667,1711723856770,-180.98888889,0.00060055,120]
[320968668,1711723856779,-155.23321797,0.00060066,120]
[320968669,1711723856788,-185.78444528,0.00060074,120]
[320968670,1711723856798,-185.78444528,0.00060141,120]
[320968671,1711723856807,-150.0,0.00060177,120]
[320968672,1711723856817,-185.78444528,0.00060208,120]
[320968673,1711723856826,-677.53380005,0.00060273,120]
[320968674,1711723856835,-676.83,0.00060273,120]
[320968675,1711723856844,-185.78444528,0.00060275,120]
[320968676,1711723856854,-1858.6259231,0.000603,120]
[320968677,1711723856863,-150.0,0.00060341,120]
[320968678,1711723856872,-150.0,0.00060341,120]
[320968679,1711723856881,-150.0,0.00060341,120]
[320968680,1711723856891,-150.0,0.00060341,120]
[320968681,1711723856900,-15.18297221,0.00060341,120]
[320968682,1711723856920,-169.47,0.00049589,120]
[320968683,1711723856929,-134.81702779,0.00060341,120]
[320968684,1711723856939,-150.0,0.00060341,120]
[320968685,1711723856948,-185.78444528,0.00060343,120]
[320968686,1711723856957,-3234.73382448,0.00060358,6]
[320968687,1711723856969,-1429.26617552,0.00060358,6]
[320968688,1711723856979,-4664.06,0.00060358,6]
[320968689,1711723856988,-2667.46,0.00060358,6]
[320968690,1711723856997,-2667.46,0.00060358,6]
[320968691,1711723857006,-2667.46,0.00060358,6]
[320968692,1711723857015,-923.0,0.000604,110]
[320968693,1711723857024,-151.42,0.000604,14]
[320968694,1711723857033,-185.78444528,0.0006041,120]
[320968695,1711723857043,-150.0,0.00060415,120]
[320968696,1711723857052,-150.0,0.00060451,120]
[320968697,1711723857061,-185.78444528,0.00060477,120]
[320968698,1711723857071,-185.78444528,0.00060545,120]
[320968699,1711723857081,-676.83,0.00060547,120]
[320968700,1711723857090,-185.78444528,0.00060612,120]
[320968701,1711723857099,-150.0,0.00060653,120]
[320968702,1711723857108,-180.98888889,0.00060658,120]
[320968703,1711723857117,-185.78444528,0.00060679,120]
[320968704,1711723857126,-185.78444528,0.00060746,120]
[320968705,1711723857136,-157.08943295,0.00060782,120]
[320968706,1711723857145,-185.78444528,0.00060814,120]
[320968707,1711723857155,-676.83,0.00060821,120]
[320968708,1711723857165,-185.78444528,0.00060881,120]
[320968709,1711723857174,-156.29,0.00060884,120]
[320968710,1711723857183,-150.0,0.00060891,120]
[320968711,1711723857192,-185.78444528,0.00060948,120]
[320968712,1711723857202,-2304.15,0.0006096,6]
[320968713,1711723857211,-2304.15,0.0006096,6]
[320968714,1711723857230,-2304.15,0.0006096,6]
[320968715,1711723857244,-2304.15,0.0006096,6]
[320968716,1711723857253,-2304.15,0.0006096,6]
[320968717,1711723857263,-2304.15,0.0006096,6]
[320968718,1711723857273,-2563.69,0.0006096,6]
[320968719,1711723857282,-2563.69,0.0006096,6]
[320968720,1711723857291,-2563.69,0.0006096,6]
[320968721,1711723857301,-548.92,0.0006096,6]
[320968722,1711723857310,-2840.08,0.0006096,6]
[320968723,1711723857320,-150.0,0.00060964,120]
[320968724,1711723857329,-150.0,0.00060999,60]
[320968725,1711723857338,-242.0,0.00061,115]
[320968726,1711723857348,-185.78444528,0.00061015,120]
[320968727,1711723857358,-185.78444528,0.00061083,120]
[320968728,1711723857368,-676.96899914,0.00061095,120]
[320968729,1711723857378,-500.0,0.00061119,90]
[320968730,1711723857387,-150.0,0.00061128,120]
[320968731,1711723857397,-185.78444528,0.0006115,120]
[320968732,1711723857406,-185.78444528,0.00061217,120]
[320968733,1711723857417,-180.98888889,0.0006126,120]
[320968734,1711723857430,-185.78444528,0.00061285,120]
[320968735,1711723857440,-185.78444528,0.00061352,120]
[320968736,1711723857449,-150.0,0.00061366,120]
[320968737,1711723857458,-200.0,0.00061387,120]
[320968738,1711723857469,-800.0,0.00061387,120]
[320968739,1711723857478,-500.0,0.00061387,120]
[320968740,1711723857488,-200.0,0.00061387,120]
[320968741,1711723857498,-255.5,0.00061412,2]
[320968742,1711723857508,-185.78444528,0.00061419,120]
[320968743,1711723857518,-150.0,0.00061476,120]
[320968744,1711723857528,-185.78444528,0.00061486,120]
[320968745,1711723857537,-242.0,0.000615,116]
[320968746,1711723857547,-151.0,0.00061507,120]
[320968747,1711723857557,-185.78444528,0.00061554,120]
[320968748,1711723857566,-1898.76,0.00061563,6]
[320968749,1711723857576,-1898.76,0.00061563,6]
[320968750,1711723857586,-1898.76,0.00061563,6]
[320968751,1711723857595,-121.25889957,0.00061563,6]
[320968752,1711723874429,2096.92313499,0.0004283,120]
[320968753,1711723878279,158.34642619,0.0004283,30]
[320968754,1711723879143,2585.39650304,0.0004283,120]
[320968755,1711723882847,1906.67732636,0.0004283,120]
[320968756,1711723883967,828.72914813,0.0004283,30]
[320968757,1711723888609,1216.04524823,0.0004283,30]
[320968758,1711723889931,393.08516863,0.0004283,30]
[320968759,1711723890654,1023.79382948,0.0004283,30]
[320968760,1711723893871,606.79951458,0.0004283,120]
[320968761,1711723896443,3104.38244648,0.0004283,30]
[320968762,1711723903265,320.70430801,0.0004283,120]
[320968763,1711723904047,1133.25186104,0.0004283,30]
[320968764,1711723907027,2293.54112594,0.0004283,120]
[320968765,1711723908306,1801.94451293,0.0004283,120]
[320968766,1711723916598,645.55644659,0.0004283,120]
[320968767,1711723922250,2352.21541103,0.0004283,30]
[320968768,1711723926676,1093.56213964,0.0004283,120]
[320968769,1711723928897,610.15493879,0.0004283,120]
[320968770,1711723932317,169.48784672,0.0004283,60]